[Event "Late-Titled-Tuesday-Blitz-January-16-2024"]
[Site "Chess.com"]
[Date "2024.01.16"]
[Round "7"]
[White "dropstoneDP"]
[Black "Sargsyan_Shant"]
[Result "1-0"]
[WhiteElo "3017"]
[BlackElo "2882"]
[TimeControl "180+1"]
[EndTime "15:17:00 PST"]
[Termination "dropstoneDP won on time"]

1. e4 {[%clk 0:03:00.9]} 1... g6 {[%clk 0:03:00.9]} 2. d4 {[%clk 0:03:00.6]}
2... Bg7 {[%clk 0:03:00.7]} 3. Nf3 {[%clk 0:03:01.1]} 3... c6 {[%clk 0:02:58]}
4. h3 {[%clk 0:03:00.7]} 4... d6 {[%clk 0:02:58.1]} 5. a4 {[%clk 0:03:00.1]}
5... Nf6 {[%clk 0:02:56.2]} 6. Bd3 {[%clk 0:03:00.6]} 6... a5 {[%clk 0:02:55.1]}
7. O-O {[%clk 0:03:00.8]} 7... O-O {[%clk 0:02:55.4]} 8. Re1 {[%clk 0:03:01.4]}
8... Nbd7 {[%clk 0:02:52.8]} 9. Nbd2 {[%clk 0:02:50.5]} 9... Qc7 {[%clk
0:02:44.9]} 10. b3 {[%clk 0:02:41.8]} 10... e5 {[%clk 0:02:40.8]} 11. dxe5
{[%clk 0:02:41.1]} 11... Nxe5 {[%clk 0:02:38.3]} 12. Nxe5 {[%clk 0:02:41.1]}
12... dxe5 {[%clk 0:02:39.2]} 13. Qf3 {[%clk 0:02:37.1]} 13... Rd8 {[%clk
0:02:35.9]} 14. Nc4 {[%clk 0:02:26.8]} 14... Nh5 {[%clk 0:02:25.8]} 15. Bg5
{[%clk 0:02:25.4]} 15... Re8 {[%clk 0:02:22.5]} 16. Rad1 {[%clk 0:02:23.1]}
16... Nf4 {[%clk 0:02:20.1]} 17. Bf1 {[%clk 0:02:04.8]} 17... Ne6 {[%clk
0:02:17.2]} 18. Be3 {[%clk 0:01:57.5]} 18... Nd4 {[%clk 0:02:16.4]} 19. Bxd4
{[%clk 0:01:57.5]} 19... exd4 {[%clk 0:02:17.3]} 20. e5 {[%clk 0:01:58.2]} 20...
c5 {[%clk 0:01:27.4]} 21. Nd6 {[%clk 0:01:56.7]} 21... Rxe5 {[%clk 0:01:24]} 22.
Bc4 {[%clk 0:01:54.3]} 22... Be6 {[%clk 0:01:14.2]} 23. Bxe6 {[%clk 0:01:51]}
23... fxe6 {[%clk 0:01:08.9]} 24. Rxe5 {[%clk 0:01:46.6]} 24... Bxe5 {[%clk
0:01:09.8]} 25. Nc4 {[%clk 0:01:46.9]} 25... Bg7 {[%clk 0:01:04.7]} 26. Re1
{[%clk 0:01:39.9]} 26... Re8 {[%clk 0:01:05.2]} 27. h4 {[%clk 0:01:34.1]} 27...
h5 {[%clk 0:01:02.3]} 28. Qe4 {[%clk 0:01:32.2]} 28... Kh7 {[%clk 0:01:01.3]}
29. g4 {[%clk 0:01:15]} 29... Kh6 {[%clk 0:00:29.4]} 30. gxh5 {[%clk 0:00:55.4]}
30... gxh5 {[%clk 0:00:30.3]} 31. Kh1 {[%clk 0:00:53.4]} 31... Qf7 {[%clk
0:00:22.9]} 32. Nd6 {[%clk 0:00:51.3]} 32... Qxf2 {[%clk 0:00:02.2]} 33. Nxe8
{[%clk 0:00:50.9]} 33... e5 {[%clk 0:00:01.3]} 34. Rg1 {[%clk 0:00:47.6]} 1-0

[Event "Late-Titled-Tuesday-Blitz-January-16-2024"]
[Site "Chess.com"]
[Date "2024.01.16"]
[Round "7"]
[White "Angry_Twin"]
[Black "enriquetejedor"]
[Result "1-0"]
[WhiteElo "2981"]
[BlackElo "2761"]
[TimeControl "180+1"]
[EndTime "15:17:03 PST"]
[Termination "Angry_Twin won by resignation"]

1. e4 {[%clk 0:03:00.9]} 1... c6 {[%clk 0:02:50.7]} 2. Nf3 {[%clk 0:03:00.6]}
2... d5 {[%clk 0:02:49.5]} 3. d3 {[%clk 0:03:01.2]} 3... Bg4 {[%clk 0:02:46.7]}
4. h3 {[%clk 0:03:01.2]} 4... Bxf3 {[%clk 0:02:45]} 5. Qxf3 {[%clk 0:03:02.1]}
5... e6 {[%clk 0:02:44.7]} 6. g3 {[%clk 0:03:00.8]} 6... Bc5 {[%clk 0:02:41.8]}
7. Bg2 {[%clk 0:03:00.3]} 7... Nd7 {[%clk 0:02:42.2]} 8. O-O {[%clk 0:03:00.1]}
8... Ne7 {[%clk 0:02:42.6]} 9. Nd2 {[%clk 0:02:59.4]} 9... O-O {[%clk
0:02:42.5]} 10. Qe2 {[%clk 0:02:57.5]} 10... a5 {[%clk 0:02:39.8]} 11. a4 {[%clk
0:02:54.6]} 11... Ba7 {[%clk 0:02:29.2]} 12. Kh1 {[%clk 0:02:52.8]} 12... Rc8
{[%clk 0:02:29.1]} 13. f4 {[%clk 0:02:51.8]} 13... Nc5 {[%clk 0:02:29.2]} 14. b3
{[%clk 0:02:33.7]} 14... Na6 {[%clk 0:02:24.2]} 15. Bb2 {[%clk 0:02:30.1]} 15...
Nb4 {[%clk 0:02:23.5]} 16. c3 {[%clk 0:02:29.1]} 16... Na6 {[%clk 0:02:23.2]}
17. g4 {[%clk 0:02:14.9]} 17... Qd7 {[%clk 0:02:20]} 18. d4 {[%clk 0:01:51]}
18... c5 {[%clk 0:02:03.9]} 19. exd5 {[%clk 0:01:49.1]} 19... Nxd5 {[%clk
0:02:03.1]} 20. c4 {[%clk 0:01:42.3]} 20... Ndb4 {[%clk 0:01:59.1]} 21. d5
{[%clk 0:01:26.1]} 21... exd5 {[%clk 0:01:58.1]} 22. cxd5 {[%clk 0:01:26.1]}
22... Rfe8 {[%clk 0:01:52.4]} 23. Qc4 {[%clk 0:01:22.4]} 23... Rcd8 {[%clk
0:01:51.7]} 24. Ne4 {[%clk 0:01:16.8]} 24... f5 {[%clk 0:01:14.1]} 25. d6+
{[%clk 0:01:09.4]} 25... Kh8 {[%clk 0:01:10.1]} 26. Ng5 {[%clk 0:01:08.1]} 26...
Rf8 {[%clk 0:01:05.7]} 27. Ne6 {[%clk 0:01:08.1]} 27... Rg8 {[%clk 0:00:49.8]}
28. Nxd8 {[%clk 0:01:02.2]} 28... Qxd8 {[%clk 0:00:46.1]} 29. g5 {[%clk
0:00:56.7]} 29... Qxd6 {[%clk 0:00:43]} 30. Rad1 {[%clk 0:00:56.3]} 30... Qg6
{[%clk 0:00:41.7]} 31. Rd7 {[%clk 0:00:52.5]} 31... Nc6 {[%clk 0:00:33.8]} 32.
Re1 {[%clk 0:00:47.8]} 32... Nab8 {[%clk 0:00:31.6]} 33. Rxb7 {[%clk 0:00:39.9]}
33... Nd4 {[%clk 0:00:15.9]} 34. Bxd4 {[%clk 0:00:38.5]} 34... cxd4 {[%clk
0:00:14.1]} 35. Rxa7 {[%clk 0:00:38.8]} 35... Qd6 {[%clk 0:00:13.4]} 36. Qxg8+
{[%clk 0:00:36.5]} 36... Kxg8 {[%clk 0:00:14.3]} 37. Re8+ {[%clk 0:00:36.6]} 1-0

[Event "Late-Titled-Tuesday-Blitz-January-16-2024"]
[Site "Chess.com"]
[Date "2024.01.16"]
[Round "7"]
[White "BozeKat"]
[Black "Pachonpower"]
[Result "1/2-1/2"]
[WhiteElo "2103"]
[BlackElo "2246"]
[TimeControl "180+1"]
[EndTime "15:17:08 PST"]
[Termination "Game drawn by repetition"]

1. d4 {[%clk 0:03:00.9]} 1... f5 {[%clk 0:02:56.1]} 2. Bf4 {[%clk 0:03:00.1]}
2... e6 {[%clk 0:02:56.3]} 3. e3 {[%clk 0:03:00.2]} 3... Nf6 {[%clk 0:02:54.9]}
4. h3 {[%clk 0:03:00.8]} 4... d5 {[%clk 0:02:47.9]} 5. Nd2 {[%clk 0:02:52.9]}
5... Bd6 {[%clk 0:02:47.7]} 6. Bxd6 {[%clk 0:02:50.5]} 6... Qxd6 {[%clk
0:02:48.6]} 7. Ngf3 {[%clk 0:02:48.8]} 7... c6 {[%clk 0:02:48.9]} 8. Rg1 {[%clk
0:02:47.1]} 8... Nbd7 {[%clk 0:02:44.7]} 9. g4 {[%clk 0:02:40.1]} 9... fxg4
{[%clk 0:02:45.6]} 10. hxg4 {[%clk 0:02:39.8]} 10... e5 {[%clk 0:02:45.8]} 11.
g5 {[%clk 0:02:36.4]} 11... Ne4 {[%clk 0:02:28.6]} 12. Nxe4 {[%clk 0:02:30.4]}
12... dxe4 {[%clk 0:02:28.7]} 13. Nxe5 {[%clk 0:02:17.1]} 13... Nxe5 {[%clk
0:02:27]} 14. dxe5 {[%clk 0:02:16.5]} 14... Qxe5 {[%clk 0:02:27.6]} 15. Qd4
{[%clk 0:01:51.7]} 15... Qxd4 {[%clk 0:02:22]} 16. exd4 {[%clk 0:01:52.6]} 16...
Ke7 {[%clk 0:02:22.5]} 17. O-O-O {[%clk 0:01:40]} 17... Rd8 {[%clk 0:02:18]} 18.
c3 {[%clk 0:01:36.3]} 18... Bf5 {[%clk 0:02:17.4]} 19. Re1 {[%clk 0:01:33]}
19... c5 {[%clk 0:02:07.6]} 20. dxc5 {[%clk 0:01:27.6]} 20... Rac8 {[%clk
0:02:08.3]} 21. Bg2 {[%clk 0:01:12.7]} 21... Rxc5 {[%clk 0:01:58.4]} 22. Bxe4
{[%clk 0:01:12.3]} 22... Kf8 {[%clk 0:01:59.1]} 23. Bxb7 {[%clk 0:01:06.2]}
23... Rb8 {[%clk 0:01:52.7]} 24. Be4 {[%clk 0:01:02.6]} 24... Be6 {[%clk
0:01:48.9]} 25. Bxh7 {[%clk 0:00:46]} 25... Bxa2 {[%clk 0:01:47.5]} 26. Bg6
{[%clk 0:00:37.4]} 26... Bf7 {[%clk 0:01:37.5]} 27. Bxf7 {[%clk 0:00:34.7]}
27... Kxf7 {[%clk 0:01:38.4]} 28. Re2 {[%clk 0:00:23.6]} 28... Ra5 {[%clk
0:01:36.7]} 29. Kb1 {[%clk 0:00:21.1]} 29... Rb6 {[%clk 0:01:35]} 30. f4 {[%clk
0:00:20.1]} 30... Rba6 {[%clk 0:01:34.7]} 31. Kc2 {[%clk 0:00:19.2]} 31... Rf5
{[%clk 0:01:33]} 32. Re4 {[%clk 0:00:18.4]} 32... Rb6 {[%clk 0:01:32.8]} 33.
Rge1 {[%clk 0:00:16.7]} 33... Rfb5 {[%clk 0:01:31.4]} 34. b4 {[%clk 0:00:14.5]}
34... Rb7 {[%clk 0:01:22.5]} 35. Re5 {[%clk 0:00:12.1]} 35... R5b6 {[%clk
0:01:20.8]} 36. f5 {[%clk 0:00:11.8]} 36... Rc6 {[%clk 0:01:19]} 37. g6+ {[%clk
0:00:11.9]} 37... Kf6 {[%clk 0:01:19.2]} 38. Kb3 {[%clk 0:00:10.2]} 38... Rbc7
{[%clk 0:01:16.8]} 39. R1e3 {[%clk 0:00:10.4]} 39... Rxc3+ {[%clk 0:01:10.3]}
40. Rxc3 {[%clk 0:00:04.4]} 40... Rxc3+ {[%clk 0:01:11.2]} 41. Kxc3 {[%clk
0:00:04.7]} 41... Kxe5 {[%clk 0:01:12.1]} 42. Kc4 {[%clk 0:00:03]} 42... Kxf5
{[%clk 0:01:12.1]} 43. Kb5 {[%clk 0:00:03.8]} 43... Kxg6 {[%clk 0:01:12.3]} 44.
Ka6 {[%clk 0:00:04.5]} 44... Kf5 {[%clk 0:01:10]} 45. Kxa7 {[%clk 0:00:05.4]}
45... g5 {[%clk 0:01:09.9]} 46. b5 {[%clk 0:00:06.1]} 46... g4 {[%clk
0:01:10.8]} 47. b6 {[%clk 0:00:06.8]} 47... g3 {[%clk 0:01:11.5]} 48. b7 {[%clk
0:00:07.7]} 48... g2 {[%clk 0:01:11.4]} 49. b8=Q {[%clk 0:00:08.6]} 49... g1=Q+
{[%clk 0:01:11.8]} 50. Qb6 {[%clk 0:00:08.7]} 50... Qa1+ {[%clk 0:01:07.7]} 51.
Kb7 {[%clk 0:00:08.8]} 51... Qh1+ {[%clk 0:01:06.6]} 52. Ka6 {[%clk 0:00:09]}
52... Qa1+ {[%clk 0:01:06.5]} 53. Kb7 {[%clk 0:00:09.5]} 53... Qh1+ {[%clk
0:01:05.5]} 54. Ka6 {[%clk 0:00:09.7]} 54... Qa1+ {[%clk 0:01:05.4]} 55. Kb7
{[%clk 0:00:10]} 1/2-1/2

[Event "Late-Titled-Tuesday-Blitz-January-16-2024"]
[Site "Chess.com"]
[Date "2024.01.16"]
[Round "7"]
[White "miraitrunks"]
[Black "jinxy2009"]
[Result "1-0"]
[WhiteElo "2095"]
[BlackElo "2232"]
[TimeControl "180+1"]
[EndTime "15:17:12 PST"]
[Termination "miraitrunks won by checkmate"]

1. d4 {[%clk 0:03:00.9]} 1... d5 {[%clk 0:02:59.6]} 2. c4 {[%clk 0:03:01.3]}
2... e6 {[%clk 0:03:00.2]} 3. Nc3 {[%clk 0:03:01.5]} 3... Nf6 {[%clk 0:03:00]}
4. cxd5 {[%clk 0:03:02.4]} 4... Be7 {[%clk 0:02:59.8]} 5. dxe6 {[%clk
0:03:02.1]} 5... Bxe6 {[%clk 0:02:59.3]} 6. e4 {[%clk 0:03:02.7]} 6... O-O
{[%clk 0:02:56.8]} 7. Nf3 {[%clk 0:02:51.8]} 7... Bb4 {[%clk 0:02:55.8]} 8. Bd3
{[%clk 0:02:46.9]} 8... Bg4 {[%clk 0:02:51.1]} 9. Be3 {[%clk 0:02:44.4]} 9...
Nc6 {[%clk 0:02:51.4]} 10. e5 {[%clk 0:02:40.6]} 10... Nd5 {[%clk 0:02:46.8]}
11. Qc2 {[%clk 0:02:36.7]} 11... Bxf3 {[%clk 0:02:10.2]} 12. gxf3 {[%clk
0:02:27.7]} 12... Qh4 {[%clk 0:02:09.6]} 13. O-O-O {[%clk 0:02:23.3]} 13... Nxc3
{[%clk 0:01:34.7]} 14. bxc3 {[%clk 0:02:24.2]} 14... Ba3+ {[%clk 0:01:35.3]} 15.
Kb1 {[%clk 0:02:11.3]} 15... b5 {[%clk 0:01:34.4]} 16. Rdg1 {[%clk 0:02:06.6]}
16... b4 {[%clk 0:01:31.4]} 17. Rg4 {[%clk 0:02:06.1]} 17... Qh5 {[%clk
0:01:28.7]} 18. c4 {[%clk 0:01:58.5]} 18... b3 {[%clk 0:01:25.6]} 19. axb3
{[%clk 0:01:59.4]} 19... Nb4 {[%clk 0:01:25.5]} 20. Qd2 {[%clk 0:01:39]} 20...
Nxd3 {[%clk 0:01:25.1]} 21. Qxd3 {[%clk 0:01:38.8]} 21... a5 {[%clk 0:01:19.1]}
22. Rhg1 {[%clk 0:01:34.8]} 22... g6 {[%clk 0:01:17.4]} 23. e6 {[%clk
0:01:32.2]} 23... a4 {[%clk 0:01:12]} 24. exf7+ {[%clk 0:01:32.3]} 24... Rxf7
{[%clk 0:01:12.2]} 25. Rg5 {[%clk 0:01:32.4]} 25... Qxh2 {[%clk 0:01:02.1]} 26.
Rxg6+ {[%clk 0:01:30]} 26... Kh8 {[%clk 0:00:42.6]} 27. R6g2 {[%clk 0:00:36.8]}
27... Qd6 {[%clk 0:00:20.7]} 28. Bh6 {[%clk 0:00:26.4]} 28... axb3 {[%clk
0:00:18.8]} 29. Bg7+ {[%clk 0:00:26.5]} 29... Rxg7 {[%clk 0:00:18.1]} 30. Rxg7
{[%clk 0:00:27.4]} 30... Qh6 {[%clk 0:00:15.9]} 31. Qxb3 {[%clk 0:00:17.8]}
31... Bf8 {[%clk 0:00:10.1]} 32. Rg8# {[%clk 0:00:17.5]} 1-0

[Event "Late-Titled-Tuesday-Blitz-January-16-2024"]
[Site "Chess.com"]
[Date "2024.01.16"]
[Round "7"]
[White "Hirna2005"]
[Black "vladoboch"]
[Result "1-0"]
[WhiteElo "2272"]
[BlackElo "2401"]
[TimeControl "180+1"]
[EndTime "15:17:16 PST"]
[Termination "Hirna2005 won on time"]

1. e4 {[%clk 0:02:56.2]} 1... e5 {[%clk 0:02:59.8]} 2. Nf3 {[%clk 0:02:55.8]}
2... Nc6 {[%clk 0:03:00.2]} 3. Bc4 {[%clk 0:02:55.4]} 3... Nf6 {[%clk
0:02:59.5]} 4. d4 {[%clk 0:02:55.6]} 4... Nxe4 {[%clk 0:02:55.6]} 5. dxe5 {[%clk
0:02:38.9]} 5... Nc5 {[%clk 0:02:28.4]} 6. O-O {[%clk 0:02:31.9]} 6... Be7
{[%clk 0:02:26.1]} 7. Be3 {[%clk 0:02:21.5]} 7... O-O {[%clk 0:02:22.9]} 8. Nc3
{[%clk 0:02:20.5]} 8... d6 {[%clk 0:02:09.6]} 9. exd6 {[%clk 0:02:11.6]} 9...
Bxd6 {[%clk 0:02:08.8]} 10. h3 {[%clk 0:02:11.4]} 10... h6 {[%clk 0:02:03.8]}
11. a3 {[%clk 0:02:07.6]} 11... Be6 {[%clk 0:01:44.3]} 12. Be2 {[%clk
0:01:54.6]} 12... Qe7 {[%clk 0:01:37.9]} 13. Nd4 {[%clk 0:01:50.8]} 13... Nxd4
{[%clk 0:01:37.5]} 14. Qxd4 {[%clk 0:01:49.5]} 14... Rad8 {[%clk 0:01:38.1]} 15.
Kh1 {[%clk 0:01:35.2]} 15... Rfe8 {[%clk 0:01:28.1]} 16. Rad1 {[%clk 0:01:32.9]}
16... Bf5 {[%clk 0:01:19.5]} 17. Nd5 {[%clk 0:01:26.1]} 17... Qe6 {[%clk
0:00:55.1]} 18. c4 {[%clk 0:01:24.9]} 18... Bxh3 {[%clk 0:00:52.5]} 19. Nf4
{[%clk 0:01:04.6]} 19... Bxf4 {[%clk 0:00:51.4]} 20. Qxf4 {[%clk 0:01:04.7]}
20... Bf5 {[%clk 0:00:33.8]} 21. Qxc7 {[%clk 0:00:52]} 21... Rxd1 {[%clk
0:00:31.2]} 22. Rxd1 {[%clk 0:00:48.9]} 22... Ne4 {[%clk 0:00:30.3]} 23. Bf3
{[%clk 0:00:43.2]} 23... Ng5 {[%clk 0:00:15.7]} 24. Bxg5 {[%clk 0:00:34.4]}
24... hxg5 {[%clk 0:00:16.6]} 25. Rd8 {[%clk 0:00:32]} 25... g4 {[%clk
0:00:11.5]} 26. Bd5 {[%clk 0:00:27.2]} 26... Qe1+ {[%clk 0:00:10.4]} 27. Kh2
{[%clk 0:00:26.8]} 27... Kh7 {[%clk 0:00:05.2]} 28. Rxe8 {[%clk 0:00:22.5]}
28... Qxe8 {[%clk 0:00:06.1]} 29. Qxb7 {[%clk 0:00:20.9]} 29... Qe5+ {[%clk
0:00:05.8]} 30. g3 {[%clk 0:00:20]} 30... Qe2 {[%clk 0:00:02]} 31. Kg2 {[%clk
0:00:20.1]} 31... Qd2 {[%clk 0:00:01.4]} 32. Be4 {[%clk 0:00:18.7]} 1-0

[Event "Late-Titled-Tuesday-Blitz-January-16-2024"]
[Site "Chess.com"]
[Date "2024.01.16"]
[Round "7"]
[White "Nf3c5"]
[Black "Gryffindorac8"]
[Result "1-0"]
[WhiteElo "2561"]
[BlackElo "2388"]
[TimeControl "180+1"]
[EndTime "15:17:17 PST"]
[Termination "Nf3c5 won on time"]

1. d4 {[%clk 0:02:57.4]} 1... Nf6 {[%clk 0:02:59.6]} 2. Nf3 {[%clk 0:02:56.9]}
2... e6 {[%clk 0:02:58.1]} 3. e3 {[%clk 0:02:53.5]} 3... d5 {[%clk 0:02:57.7]}
4. Bd3 {[%clk 0:02:53.9]} 4... c5 {[%clk 0:02:56.7]} 5. b3 {[%clk 0:02:50.3]}
5... Nc6 {[%clk 0:02:52.8]} 6. Nbd2 {[%clk 0:02:47.4]} 6... cxd4 {[%clk
0:02:48.6]} 7. exd4 {[%clk 0:02:46.9]} 7... Nb4 {[%clk 0:02:39.2]} 8. Bb5+
{[%clk 0:02:29.2]} 8... Bd7 {[%clk 0:02:38.3]} 9. Be2 {[%clk 0:02:29.8]} 9...
Rc8 {[%clk 0:02:32.8]} 10. c4 {[%clk 0:02:29.8]} 10... Be7 {[%clk 0:02:18.3]}
11. O-O {[%clk 0:02:27.8]} 11... O-O {[%clk 0:02:16]} 12. Bb2 {[%clk 0:02:24.3]}
12... dxc4 {[%clk 0:01:54.9]} 13. bxc4 {[%clk 0:02:21.7]} 13... b6 {[%clk
0:01:48.9]} 14. a3 {[%clk 0:02:01.8]} 14... Nc6 {[%clk 0:01:46.1]} 15. Re1
{[%clk 0:02:02.3]} 15... Na5 {[%clk 0:01:42.2]} 16. Bd3 {[%clk 0:01:58.6]} 16...
Qc7 {[%clk 0:01:23.9]} 17. Rc1 {[%clk 0:01:52]} 17... Rfd8 {[%clk 0:01:22.8]}
18. Qe2 {[%clk 0:01:46.8]} 18... Bd6 {[%clk 0:01:10.2]} 19. Ne5 {[%clk
0:01:42.1]} 19... Be8 {[%clk 0:01:04.7]} 20. f4 {[%clk 0:01:28.7]} 20... Qe7
{[%clk 0:01:02.7]} 21. Ra1 {[%clk 0:01:23.7]} 21... Nc6 {[%clk 0:00:53.7]} 22.
Ndf3 {[%clk 0:01:20]} 22... Bb8 {[%clk 0:00:42.5]} 23. Rad1 {[%clk 0:01:13.8]}
23... Bd6 {[%clk 0:00:39.8]} 24. Ra1 {[%clk 0:01:04.3]} 24... Bb8 {[%clk
0:00:39.2]} 25. Qf2 {[%clk 0:00:59.2]} 25... Na5 {[%clk 0:00:23.1]} 26. d5
{[%clk 0:00:47.1]} 26... Bd6 {[%clk 0:00:15.1]} 27. Qh4 {[%clk 0:00:37.3]} 27...
Bc5+ {[%clk 0:00:13.3]} 28. Kh1 {[%clk 0:00:36.8]} 28... Qc7 {[%clk 0:00:04.6]}
29. Ng4 {[%clk 0:00:34.4]} 29... Nxg4 {[%clk 0:00:02.7]} 30. Qxh7+ {[%clk
0:00:31.1]} 30... Kf8 {[%clk 0:00:03.2]} 31. Qxg7+ {[%clk 0:00:25.3]} 31... Ke7
{[%clk 0:00:03.7]} 32. Rxe6+ {[%clk 0:00:24.4]} 32... Kd7 {[%clk 0:00:03.2]} 33.
Qxg4 {[%clk 0:00:23.2]} 1-0

[Event "Late-Titled-Tuesday-Blitz-January-16-2024"]
[Site "Chess.com"]
[Date "2024.01.16"]
[Round "7"]
[White "DenizG123"]
[Black "texie1"]
[Result "0-1"]
[WhiteElo "2126"]
[BlackElo "2520"]
[TimeControl "180+1"]
[EndTime "15:17:21 PST"]
[Termination "texie1 won by resignation"]

1. c4 {[%clk 0:03:00.9]} 1... Nf6 {[%clk 0:02:59.6]} 2. Nc3 {[%clk 0:03:01.5]}
2... e5 {[%clk 0:02:58.8]} 3. g3 {[%clk 0:03:01.8]} 3... c6 {[%clk 0:02:58.4]}
4. Bg2 {[%clk 0:03:02]} 4... d5 {[%clk 0:02:59.1]} 5. cxd5 {[%clk 0:02:55.9]}
5... cxd5 {[%clk 0:03:00]} 6. Nf3 {[%clk 0:02:15.6]} 6... Nc6 {[%clk 0:02:59]}
7. d4 {[%clk 0:02:05.3]} 7... e4 {[%clk 0:02:56.8]} 8. Ne5 {[%clk 0:01:58.6]}
8... Bd6 {[%clk 0:02:56.5]} 9. Nxc6 {[%clk 0:01:33.1]} 9... bxc6 {[%clk
0:02:57.4]} 10. O-O {[%clk 0:01:32.9]} 10... O-O {[%clk 0:02:56.8]} 11. Bg5
{[%clk 0:01:31]} 11... h6 {[%clk 0:02:56.3]} 12. Bxf6 {[%clk 0:01:31.1]} 12...
Qxf6 {[%clk 0:02:57]} 13. Rc1 {[%clk 0:01:30.7]} 13... Bd7 {[%clk 0:02:32.9]}
14. Na4 {[%clk 0:01:30.6]} 14... Rfc8 {[%clk 0:02:33]} 15. Nc5 {[%clk
0:01:30.4]} 15... Be8 {[%clk 0:02:33.1]} 16. e3 {[%clk 0:01:30.2]} 16... a5
{[%clk 0:02:31.6]} 17. Qa4 {[%clk 0:01:29.8]} 17... Rcb8 {[%clk 0:02:29.4]} 18.
Rc2 {[%clk 0:01:21.3]} 18... Bxc5 {[%clk 0:02:23.1]} 19. Rxc5 {[%clk 0:01:17.6]}
19... Rxb2 {[%clk 0:02:15.8]} 20. Rxa5 {[%clk 0:01:17.9]} 20... Rab8 {[%clk
0:02:15.4]} 21. Rc5 {[%clk 0:01:12.9]} 21... Bd7 {[%clk 0:02:07.3]} 22. a3
{[%clk 0:00:53.6]} 22... R8b6 {[%clk 0:02:00.5]} 23. Qa8+ {[%clk 0:00:51.4]}
23... Rb8 {[%clk 0:02:00.5]} 24. Qa7 {[%clk 0:00:51.9]} 24... Bg4 {[%clk
0:01:58.4]} 25. Qc7 {[%clk 0:00:46.7]} 25... Be2 {[%clk 0:01:51.6]} 26. Rfc1
{[%clk 0:00:42.5]} 26... Bd3 {[%clk 0:01:50.8]} 27. Qf4 {[%clk 0:00:40.3]} 27...
Qxf4 {[%clk 0:01:37.3]} 28. gxf4 {[%clk 0:00:40.1]} 28... Bb5 {[%clk 0:01:32.7]}
29. Bh3 {[%clk 0:00:40.2]} 29... Ra8 {[%clk 0:01:28.2]} 30. R1c3 {[%clk
0:00:28.4]} 30... Ra2 {[%clk 0:01:18.4]} 31. Bd7 {[%clk 0:00:28.2]} 31... R8xa3
{[%clk 0:01:04.3]} 32. Rxa3 {[%clk 0:00:27.8]} 32... Rxa3 {[%clk 0:01:02.8]} 33.
Bxc6 {[%clk 0:00:28.2]} 33... Bxc6 {[%clk 0:01:00.5]} 34. Rxc6 {[%clk
0:00:29.1]} 34... Ra5 {[%clk 0:00:58]} 35. Kg2 {[%clk 0:00:28.6]} 35... Kf8
{[%clk 0:00:56.5]} 36. Rc7 {[%clk 0:00:28.5]} 36... Ra6 {[%clk 0:00:54.2]} 37.
Rd7 {[%clk 0:00:23]} 37... Ra5 {[%clk 0:00:53.6]} 38. Kg3 {[%clk 0:00:20.6]}
38... Ke8 {[%clk 0:00:54.2]} 39. Rb7 {[%clk 0:00:20.3]} 39... Ra6 {[%clk
0:00:54.6]} 40. f5 {[%clk 0:00:20.3]} 40... Rd6 {[%clk 0:00:52.9]} 41. Kf4
{[%clk 0:00:20.4]} 41... Rd7 {[%clk 0:00:45]} 42. Rxd7 {[%clk 0:00:19.9]} 42...
Kxd7 {[%clk 0:00:45.6]} 43. Ke5 {[%clk 0:00:20.5]} 43... Kc6 {[%clk 0:00:46.3]}
44. f6 {[%clk 0:00:20.6]} 44... g6 {[%clk 0:00:45.1]} 45. h4 {[%clk 0:00:20.8]}
45... h5 {[%clk 0:00:43]} 46. Kf4 {[%clk 0:00:18.5]} 46... Kd6 {[%clk
0:00:43.6]} 47. Kg5 {[%clk 0:00:19]} 47... Ke6 {[%clk 0:00:43.7]} 48. Kf4 {[%clk
0:00:15.9]} 48... Kxf6 {[%clk 0:00:44.6]} 49. f3 {[%clk 0:00:16.6]} 49... exf3
{[%clk 0:00:43.7]} 50. Kxf3 {[%clk 0:00:17.5]} 50... Kf5 {[%clk 0:00:44.1]} 51.
Kf2 {[%clk 0:00:16.7]} 51... Ke4 {[%clk 0:00:43.9]} 52. Ke2 {[%clk 0:00:17]}
52... f6 {[%clk 0:00:44]} 53. Kf2 {[%clk 0:00:17]} 53... g5 {[%clk 0:00:44.1]}
54. hxg5 {[%clk 0:00:17.6]} 54... fxg5 {[%clk 0:00:44.7]} 55. Ke2 {[%clk
0:00:17.9]} 55... h4 {[%clk 0:00:45.3]} 56. Kf2 {[%clk 0:00:18.4]} 56... g4
{[%clk 0:00:45.1]} 0-1